Cogmind - Beta 14 @@@ ROGUE MODE // 2024.09.13 @ 11:24:10 Player: Wulphy Result: Destroyed by VM-JEQ(R) with Subdweller Laser Performance ------------- Evolutions (0) 0 Regions Visited (3) 600 Robots Destroyed (31) 155 Value Destroyed (741) 741 Prototype IDs (0) 0 Alien Tech Used (0) 0 Bonus (0) 0 TOTAL SCORE: 1496 Bonus ------- None Cogmind --------- Core Integrity 0/250 Matter 266/300 Energy 200/200 System Corruption 0% Temperature Cool (6) Movement Rolling (120) Ox1 Location -10/Subcaves Parts ------- > --- POWER (1) -------- Subdweller Power Source > --- PROPULSION (2) --- Subdweller Monowheel Subdweller Monowheel > --- UTILITY (2) ------ High-capacity Storage Unit Seismic Detector > --- WEAPON (2) ------- Subdweller Laser Subdweller Machine Gun > --- INVENTORY (20) --- Light Ion Engine Subdweller Power Source Subdweller Power Source Light Nuclear Core Subdweller Monowheel Subdweller Monowheel Disposable Heat Sink Subdweller Optics Subdweller Optics Experimental Sensor Array Beam Rifle Subdweller Laser Subdweller Beam Cannon Heavy Assault Rifle Barrage Gun Rocket Launcher Mining Laser Multitool Peak State ------------ > --- POWER ------------ Makeshift Power Source > --- PROPULSION ------- Compact Wheel Subdweller Monowheel > --- UTILITY ---------- Improved Heat Sink High-capacity Storage Unit > --- WEAPON ----------- Subdweller Laser Subdweller Beam Cannon > --- INVENTORY -------- Light Ion Engine Subdweller Power Source Subdweller Power Source Light Nuclear Core Subdweller Monowheel Subdweller Monowheel Disposable Heat Sink Subdweller Optics Subdweller Optics Experimental Sensor Array Seismic Detector Beam Rifle Subdweller Laser Subdweller Beam Cannon Heavy Assault Rifle Barrage Gun Rocket Launcher Mining Laser Multitool [Rating: 19] Favorites ----------- Power Light Ion Engine Engine Light Ion Engine Propulsion Light Treads Treads Light Treads Wheel Compact Wheel Utility Seismic Detector Device Seismic Detector Storage Large Storage Unit Processor Targeting Computer Weapon Medium Laser Energy Gun Medium Laser Energy Cannon Subdweller Beam Cannon Ballistic Gun Assault Rifle Special Weapon Mining Laser Build | -11 -10 -10 -10 ------- Run | Yrd Mat Min Sub Slots Evolved . | . . . . Power . | . . . . Propulsion . | . . . . Utility . | . . . . Weapon . | . . . . Parts Attached 42 | 7 4 4 27 Power 6 | 1 . 2 3 Engine 6 | 1 . 2 3 Core . | . . . . Reactor . | . . . . Propulsion 6 | 2 . . 4 Treads 2 | 2 . . . Leg . | . . . . Wheel 4 | . . . 4 Hover . | . . . . Flight . | . . . . Utility 16 | 2 4 1 9 Device 11 | 1 1 1 8 Storage 4 | 1 2 . 1 Processor 1 | . 1 . . Hackware . | . . . . Protection . | . . . . Artifact . | . . . . Weapon 14 | 2 . 1 11 Energy Gun 5 | 1 . . 4 Energy Cannon 3 | . . . 3 Ballistic Gun 5 | 1 . 1 3 Ballistic Cannon . | . . . . Launcher . | . . . . Special Weapon 1 | . . . 1 Impact Weapon . | . . . . Slashing Weapon . | . . . . Piercing Weapon . | . . . . Special Melee Weapon . | . . . . Unidentified Prototypes . | . . . . Parts Lost 6 | . . . 6 Power . | . . . . Propulsion 4 | . . . 4 Utility 1 | . . . 1 Weapon 1 | . . . 1 Highest Loss Streak 2 | . . . 2 To Critical Strikes . | . . . . Average Slot Usage (%) 99 | . 100 100 99 Engine 14 | . 14 14 14 Treads 13 | . 28 28 5 Wheel 14 | . . . 22 Device 12 | . 7 11 14 Storage 14 | . 14 14 14 Processor 1 | . 6 2 . Energy Gun 13 | . 14 14 12 Energy Cannon 6 | . . . 10 Ballistic Gun 7 | . 14 14 3 Peak Build Rating 19 | 7 8 9 19 Average Rating 11 | 5 7 8 13 On Entrance 6 | . 7 8 9 Naked Turns . | . . . . Heaviest Build 58 | 15 29 30 58 Greatest Support 40 | 40 40 40 40 Greatest Overweight (x) 3 | . . . 3 Average Overweight (x) . | . . . 1 Largest Inventory Capacity 20 | 8 15 15 20 Average Capacity 16 | 7 9 15 18 Most Carried 20 | 8 10 15 20 Average Carried 15 | 4 8 13 18 Final Capacity 20 | 8 15 15 20 Final Carried 18 | 8 10 15 18 Class Distribution -------------------- 100% | Mutant Dominant Class ---------------- Mutant | -10/Materials Mutant | -10/Mines Mutant | -10/Subcaves Resources | -11 -10 -10 -10 ----------- Run | Yrd Mat Min Sub Matter Collected 962 | 307 134 247 274 Remotely . | . . . . Salvage Created 1249 | 126 142 299 682 Parts 85 | 8 8 25 44 Haulers Intercepted . | . . . . Recyclers Shooed 1 | . 1 . . Parts Field Recycled . | . . . . Retrieved Matter . | . . . . Parts Self-Destructed 15 | . . . 15 Prevented . | . . . . Kills | -11 -10 -10 -10 ------- Run | Yrd Mat Min Sub Combat Hostiles Destroyed 27 | . 3 13 11 Guns 22 | . 3 13 6 Cannons 5 | . . . 5 Classes Destroyed 8 | 3 1 1 3 Worker 1 | 1 . . . Tunneler 1 | 1 . . . Recycler 2 | 1 1 . . Swarmer 12 | . 3 9 . Grunt 5 | . . 4 1 Sentry 1 | . . . 1 Artisan 2 | . . . 2 Subdweller 9 | . . . 9 Best Kill Streak 5 | 2 4 5 2 Combat Bots Only 5 | . 3 5 2 Max Kills in Single Turn 2 | 1 1 2 1 Gunslinging 1 | . . 1 . Exploded . | . . . . Melee . | . . . . Uniques/NPCs Destroyed . | . . . . Combat | -11 -10 -10 -10 -------- Run | Yrd Mat Min Sub Hostile Shots Fired 118 | . 11 55 52 Missed 33 | . 3 18 12 Damage Taken 1423 | . 55 401 967 Core 264 | . . 70 194 Absorbed by Shields . | . . . . Core Remaining (%) 100 | 100 . . . Volleys Fired 126 | 5 10 27 84 Largest 2 | 2 2 2 2 Hottest 145 | 70 70 70 145 Shots Fired 217 | 10 20 54 133 Gun 153 | 10 20 54 69 Cannon 57 | . . . 57 Launcher . | . . . . Special 7 | . . . 7 Kinetic 60 | 5 10 27 18 Thermal 157 | 5 10 27 115 Explosive . | . . . . Electromagnetic . | . . . . Robot Hit Streak 21 | 9 12 13 21 Robot Miss Streak 3 | . 1 3 2 Penetration Max . | . . . . Secondary Targets 3 | . . 3 . Max Gunslinging Chain 1 | . . 1 . Shots Hit Robots 147 | 9 15 35 88 Core Hits 53 | 4 5 19 25 Critical Kills 1 | . . . 1 Critical Parts Destroyed . | . . . . Critical Strikes 5 | . . 2 3 Burn 3 | . . 2 1 Destroy 2 | . . . 2 Melee Attacks . | . . . . Impact . | . . . . Slashing . | . . . . Piercing . | . . . . Sneak Attacks . | . . . . Combat Hostiles . | . . . . Follow-up Attacks . | . . . . Damage Inflicted 2368 | 111 188 436 1633 Guns 1695 | 111 188 436 960 Cannons 673 | . . . 673 Explosions . | . . . . Melee . | . . . . Ramming . | . . . . Kinetic 535 | 49 86 211 189 Thermal 1833 | 62 102 225 1444 Explosive . | . . . . Electromagnetic . | . . . . Impact . | . . . . Slashing . | . . . . Piercing . | . . . . Highest Corruption . | . . . . Average Corruption . | . . . . Corruption Purged . | . . . . Corruption Blocked . | . . . . Overload Shots . | . . . . Overflow Damage . | . . . . Projectiles . | . . . . Explosions . | . . . . Melee . | . . . . Knockbacks . | . . . . Impact . | . . . . Kinetic . | . . . . Secondary . | . . . . Self-Inflicted Damage . | . . . . Shots . | . . . . Rammed . | . . . . Targets Rammed . | . . . . Kicked . | . . . . Crushed . | . . . . Highest Temperature 168 | 18 45 168 48 Average Temperature 33 | 9 16 51 15 Received Heat Transfer 315 | . . 147 168 Siege Activations . | . . . . Robots Corrupted . | . . . . Combat Hostiles . | . . . . Parts Fried . | . . . . Impact Corruptions . | . . . . Robots Melted . | . . . . Combat Hostiles . | . . . . Parts Melted 6 | . 2 2 2 Heat Transferred 3707 | 185 296 814 2412 Parts Sabotaged . | . . . . Parts Stolen . | . . . . Parts Stripped . | . . . . Power Chain Reactions . | . . . . Alert | -11 -10 -10 -10 ------- Run | Yrd Mat Min Sub Peak Influence 229 | 15 114 229 . Initial 44 | . 9 44 . Average 74 | 4 50 91 . Maximum Alert Level 1 | . . 1 . Low Security (%) 98 | 100 100 98 . Level 1 1 | . . 1 . Level 2 . | . . . . Level 3 . | . . . . Level 4 . | . . . . Level 5 . | . . . . High Security . | . . . . Max Security . | . . . . Squads Dispatched 1 | . 1 . . Investigation . | . . . . Extermination . | . . . . Reinforcement 1 | . 1 . . Assault . | . . . . Garrison . | . . . . Intercept . | . . . . Searches Triggered . | . . . . Construction Impeded . | . . . . Haulers Reinforced . | . . . . Active Scanning Responses . | . . . . Cargo Convoy Interrupts . | . . . . Stealth | -11 -10 -10 -10 --------- Run | Yrd Mat Min Sub Distress Signals . | . . . . Communications Jammed . | . . . . Distress Signals . | . . . . Times Spotted 34 | . 6 14 14 Peak Tracking Total 3 | . 3 3 2 Tactical Retreats 2 | . 1 1 . Traps | -11 -10 -10 -10 ------- Run | Yrd Mat Min Sub Traps Triggered 3 | . . . 3 Indirectly . | . . . . Trap Hack Attempts . | . . . . Triggered . | . . . . Disarmed . | . . . . Reprogrammed . | . . . . Reused 1 | . . . 1 Traps Extracted . | . . . . Installed 1 | . . . 1 Triggered . | . . . . Machines | -11 -10 -10 -10 ---------- Run | Yrd Mat Min Sub Machines Disabled . | . . . . Max in Single Turn . | . . . . Machines Repaired . | . . . . Machines Dismantled . | . . . . Machines Sabotaged . | . . . . Overloaded Fab Kills . | . . . . Hacking | -11 -10 -10 -10 --------- Run | Yrd Mat Min Sub Machines Accessed 2 | . . . 2 Terminals . | . . . . Fabricators . | . . . . Repair Stations . | . . . . Recycling Units . | . . . . Scanalyzers . | . . . . Garrison Access . | . . . . Total Hacks 3 | . . . 3 Successful 3 | . . . 3 Failed . | . . . . Catastrophic . | . . . . Database Lockouts . | . . . . Manual . | . . . . Terminals . | . . . . Fabricators . | . . . . Repair Stations . | . . . . Recycling Units . | . . . . Scanalyzers . | . . . . Garrison Access . | . . . . Terminal Hacks 3 | . . . 3 Record 1 | . . . 1 Open Door 1 | . . . 1 Release Object 1 | . . . 1 Fabricator Hacks . | . . . . Repair Station Hacks . | . . . . Recycling Unit Hacks . | . . . . Scanalyzer . | . . . . Garrison Access Hacks . | . . . . Unauthorized Hacks . | . . . . Terminals . | . . . . Fabricators . | . . . . Repair Stations . | . . . . Recycling Units . | . . . . Scanalyzers . | . . . . Garrison Access . | . . . . Data Cores Recovered . | . . . . Used . | . . . . Hacking Detections . | . . . . Full Trace Events . | . . . . Feedback Events . | . . . . Feedback Blocked . | . . . . Robot Schematics Acquired . | . . . . Robots Built . | . . . . Authchips . | . . . . Time . | . . . . Total Robot Build Rating . | . . . . Part Schematics Acquired . | . . . . Parts Built . | . . . . Authchips . | . . . . Time . | . . . . Total Part Build Rating . | . . . . Parts Repaired . | . . . . Time . | . . . . Parts Recycled . | . . . . Recycled Matter . | . . . . Retrieved Matter . | . . . . Retrieved Components . | . . . . Parts Scanalyzed . | . . . . Part Schematics Acquired . | . . . . Parts Damaged . | . . . . Bothacking | -11 -10 -10 -10 ------------ Run | Yrd Mat Min Sub Used RIF Installer . | . . . . Robots Hacked . | . . . . Non-combat . | . . . . Combat . | . . . . Robot Hacks Applied . | . . . . Relay Couplers Released . | . . . . Fabnet Peak Effective % . | . . . . Robots Rewired . | . . . . Allies Hacked . | . . . . Hacks Repelled . | . . . . Allies | -11 -10 -10 -10 -------- Run | Yrd Mat Min Sub Total Allies . | . . . . Largest Group . | . . . . Highest-Rated Group . | . . . . Highest-Rated Ally . | . . . . Total Orders . | . . . . Ally Attacks . | . . . . Total Damage . | . . . . Kills . | . . . . Allies Corrupted . | . . . . Allies Melted . | . . . . Intel | -11 -10 -10 -10 ------- Run | Yrd Mat Min Sub Robot Analysis Total . | . . . . Derelict Logs Recovered 5 | . . 2 3 Drone Launches . | . . . . Drone Recoveries . | . . . . Exploration | -11 -10 -10 -10 ------------- Run | Yrd Mat Min Sub Turns Passed 3934 | 119 318 968 2529 Spaces Moved 2433 | 52 165 534 1682 Core 4 | 4 . . . Treads 914 | 48 165 534 167 Legs . | . . . . Wheels 1515 | . . . 1515 Hover . | . . . . Flight . | . . . . Fastest Speed 50 | 50 160 160 115 Average Speed 136 | 151 160 160 126 Slowest Speed 240 | 160 160 160 240 Overloaded Moves . | . . . . Propulsion Burnouts . | . . . . Robots Hopped . | . . . . Cave-ins Triggered . | . . . . Exploration Rate (%) 54 | 5 29 99 84 Regions Visited 3 Branch Regions 2 Pre-discovered Areas 5 | . . 1 4 Known Exits Taken . | . . . . Unknown Exits Taken 3 | 1 1 1 . Scrap Searched 2 | . . 1 1 Spaces Dug 2 | . . . 2 Terrain Destroyed 6 | . . . 6 Melee . | . . . . Projectile 6 | . . . 6 AOE . | . . . . Terrain Rammed . | . . . . Walls Destroyed . | . . . . Machines Disabled . | . . . . Actions | -11 -10 -10 -10 --------- Run | Yrd Mat Min Sub Total 2805 | 79 201 594 1931 Wait 136 | 8 14 18 96 Move 2430 | 51 164 533 1682 Hop . | . . . . Pick Up 45 | 8 5 8 24 Fast Attach 8 | 7 . . 1 Attach 6 | . . . 6 Detach . | . . . . Swap 28 | . 4 4 20 Drop 25 | . 4 4 17 Fire 126 | 5 10 27 84 Melee . | . . . . Ram . | . . . . Kick . | . . . . Crush . | . . . . Escape Stasis . | . . . . Rewire . | . . . . Trap 1 | . . . 1 Miscellaneous . | . . . . Route ------- -11/Scrapyard -10/Materials -10/Mines (discovered 3 exits: [*Mat x2] / *Sub) -10/Subcaves (discovered 2 exits: [*Mat x2]) History --------- Turn | Location | Event 26 | -11/Scrapyard | Discovered new exit (range 15) 120 | -11/Scrapyard | Entered Materials 316 | -10/Materials | Build established: Mutant 393 | -10/Materials | Discovered new exit (range 14) 438 | -10/Materials | Entered Mines 1088 | -10/Mines | Discovered new exit (range 3) 1099 | -10/Mines | Found a damaged Exp. Sensor Array with a note attached 1103 | -10/Mines | Found Prototype Device 1113 | -10/Mines | Discovered new exit (range 10) 1137 | -10/Mines | Discovered new exit (range 14) 1218 | -10/Mines | Learned Materials terminal intel 1238 | -10/Mines | Learned location of Recycling (-9) 1309 | -10/Mines | Received a Rocket Launcher from a helpful Derelict 1406 | -10/Mines | Entered Subcaves 1498 | -10/Subcaves | Ambushed by angry Subdweller bent on revenge 1794 | -10/Subcaves | Learned location of Mines (-10) 1874 | -10/Subcaves | Shifting Twisted Machinery released Barrage Gun 1910 | -10/Subcaves | Shifting Twisted Machinery released Sub. Beam Cannon 2393 | -10/Subcaves | Discovered new exit (range 15) 2758 | -10/Subcaves | Learned location of Zion (-6) 2758 | -10/Subcaves | Met a Zionite searching for "candidates" 2845 | -10/Subcaves | Core integrity fell below 50% 2914 | -10/Subcaves | Learned location of Storage (-9) 2970 | -10/Subcaves | Shifting Twisted Machinery released Mak. Power Source 3112 | -10/Subcaves | Discovered new exit (range 15) 3114 | -10/Subcaves | Shifting Twisted Machinery released Sub. Monowheel 3118 | -10/Subcaves | Shifting Twisted Machinery released Sub. Optics 3624 | -10/Subcaves | Curiously followed by a Cobbler waking with a query about "LVR3C" 3676 | -10/Subcaves | Core integrity fell below 20% 3935 | -10/Subcaves | Destroyed by VM-JEQ(R) with Subdweller Laser Last Messages --------------- 03689_ Acquired 25 matter. 03691_ Acquired Sub. Monowheel. 03700_ E3-BC8(O) collects matter. 03703_ E3-BC8(O) puts together Sub. Monowheel. 03729_ E3-BC8(O) collects matter. 03743_ E3-BC8(O) puts together Riot Gun. 03762_ UO-PRF(R) suffers critical hit (Destroy). 03762_ UO-PRF(R) destroyed. 03772_ Acquired Sub. Power Source. 03775_ Dropped Sub. Laser. 03777_ Acquired Sub. Machine Gun. 03778_ Acquired 20 matter. 03810_ Com. Wheel destroyed. 03812_ Imp. Heat Sink destroyed. 03813_ AD-KCD(R) destroyed. 03843_ E3-BC8(O) collects matter. 03893_ Installed Shrapnel Trap. 03927_ Sub. Beam Cannon shoots sparks and powers down. 03934_ Sub. Laser shoots sparks and powers down. Map ----- +----------------------------------------------------+ | ?????????????????????????????????????????????????? | | ?????????????????????????????????????????????????? | | ?????????????????????????????????????????????????? | | ?????????????????????????????????????????????????? | | ?????????????????????????????????????????????????? | | ?????????????????????????????????????????????????? | | ?????????????????????????????????????????????????? | | ?????????????????????????????????????????????????? | | ?????????????????????????????????????????????????? | | ?????????????????????????????????????????????????? | | ?????????????????????????????????????????????????? | | ?????????????????????????????????????????????????? | | ?????????????????????????????????????????????????? | | ?????????????????????????????????????????????????? | | ?????????????????????????????????????????????????? | | ?????????????????????????????????????????????????? | | ?????????????????????????????????????????????????? | | ?????????????????????????????????????????????????? | | ?????????????????????????????????????????????????? | | ?????????????????????????????????????????????????? | | ????????????????????????????????????###??????????? | | ????????????????????????????????## #??????????? | | ???????????????????????????????# #??????????? | | ????????????????????????####### %##?????????? | | ???????????????????????## # # % %#?????????? | | ??????????????????##???# @ %#???????????????? | | ?????????????????## ##?## # ##???????????????? | | ???????????????### #??; &#? % ##??????####????? | | ??????????????## #### R##? #???????"" ???? | | ?????????????##% ## O #?# "##???????? ??? | | ??????? % % ####"""#????????? ### | | ??????? ## ### " #?###??????? | | ??????? ???????# ### ^ ####"#???????? | | ??????# ????###"# ### #????????? | | ?????? ????# " " " # ## #?????????## | | ??????# ?#####" "" ####### #?????????# | | ???????#""## ## "### #?#" [ #?????????# | | ??????##""""""" ##### #?#" """"""#?????????## | | ??????#"""""""" "##?# ##?### """"#######?????# | | ?????????#" " #?## ########## # ###???# | | ?????????##" ###?# #!#"# "## !] ##??# | | ??????????#" #???# !%*[ " ! *&& #### | | ??????????#" #???##" % """" ####*## | | ??????????#" ##????##""# "" ##??##### | | ??????????## ##??????##########" ##???????##### | | ???????????####????????????????####????????????### | | ?????????????????????????????????????????????????? | | ?????????????????????????????????????????????????? | | ?????????????????????????????????????????????????? | | ?????????????????????????????????????????????????? | +----------------------------------------------------+ Best States ------------- Heat Dissipation 39 Energy Generation 15 Energy Capacity 250 Matter Stores 300 Matter Capacity 300 Sight Range 16 Terrain Scan Density 10 Evasion (%) 40 Targeting Accuracy 5 Recoil Reduction 2 Item Schematics ----------------- None Robot Schematics ------------------ None Fabricated ------------ Nothing Alien Tech Used ----------------- None Achievements -------------- None Challenges ------------ None Game ------ Seed HeatTeleporterBoregun Manual? 0 Play Time 00:34:19 Cumulative 196.0 hours Start 2024.09.13 @ 10:49:59 End 2024.09.13 @ 11:24:10 Sessions 1 Manual Loads 0 Difficulty Rogue Special Mode None Game No. 42 Rogue 42 Adventurer 0 Explorer 0 Win Type - Total 3 Types 1/0/1/1/0/0/0/0/0 Lore% 58 Gallery% 62 Achievement% 63 Wizard Run 0 Options --------- Layout 2 ASCII 0 Keyboard 1 Movement Vi Keybinds 1 Fullscreen 1 Font 24/Tamsyn Map View 50x44 Zoom Use 0% Tactical HUD 1 Map Filters NONE Filters NONE Steam 1 RUN: 6459b7a7-0189-43c1-878c-c90b3449a95b